[Event "*** Titled Tuesday Blitz"]
[Site "Chess.com"]
[Date "2020.02.04"]
[Round "6"]
[White "Gusarov91"]
[Black "almaguerjm"]
[Result "1/2-1/2"]
[WhiteElo "2604"]
[BlackElo "2412"]
[TimeControl "180+2"]
[EndTime "14:20:52 PST"]
[Termination "Game drawn by stalemate"]

1. d4 {[%clk 0:03:01.9]} 1... Nf6 {[%clk 0:03:00.1]} 2. Nf3 {[%clk 0:03:03]}
2... g6 {[%clk 0:02:58.3]} 3. c4 {[%clk 0:03:04.1]} 3... Bg7 {[%clk 0:02:59.1]}
4. g3 {[%clk 0:03:04.7]} 4... c5 {[%clk 0:03:00.1]} 5. Bg2 {[%clk 0:03:05.9]}
5... cxd4 {[%clk 0:03:00.1]} 6. Nxd4 {[%clk 0:03:07.8]} 6... Nc6 {[%clk
0:03:01.4]} 7. O-O {[%clk 0:03:08.6]} 7... O-O {[%clk 0:03:02.5]} 8. Nc3 {[%clk
0:03:09.5]} 8... d6 {[%clk 0:02:52.6]} 9. Nxc6 {[%clk 0:03:08.4]} 9... bxc6
{[%clk 0:02:53.8]} 10. Bxc6 {[%clk 0:03:10.1]} 10... Rb8 {[%clk 0:02:55.1]} 11.
Bg2 {[%clk 0:03:10.2]} 11... Ba6 {[%clk 0:02:53.5]} 12. Qa4 {[%clk 0:03:10]}
12... Qc8 {[%clk 0:02:53.2]} 13. Nd5 {[%clk 0:02:56.8]} 13... Re8 {[%clk
0:02:49.5]} 14. Nc7 {[%clk 0:02:50.6]} 14... Qxc7 {[%clk 0:02:42.4]} 15. Qxa6
{[%clk 0:02:51.5]} 15... Nd7 {[%clk 0:02:35.4]} 16. Qc6 {[%clk 0:02:50.5]} 16...
Rec8 {[%clk 0:02:35.9]} 17. Qe4 {[%clk 0:02:32.7]} 17... e6 {[%clk 0:02:14.5]}
18. Qd3 {[%clk 0:02:24.2]} 18... Ne5 {[%clk 0:02:13.8]} 19. Qd1 {[%clk
0:02:06.4]} 19... Nxc4 {[%clk 0:02:12.8]} 20. Bf4 {[%clk 0:01:53.5]} 20... Bxb2
{[%clk 0:01:53.7]} 21. Rb1 {[%clk 0:01:54.2]} 21... e5 {[%clk 0:01:50.2]} 22.
Bc1 {[%clk 0:01:37.6]} 22... Bd4 {[%clk 0:01:49.5]} 23. Rxb8 {[%clk 0:01:35.7]}
23... Rxb8 {[%clk 0:01:51.4]} 24. Qc2 {[%clk 0:01:36.5]} 24... Qc8 {[%clk
0:01:45.4]} 25. e3 {[%clk 0:01:34.1]} 25... Bb6 {[%clk 0:01:43.2]} 26. Bd5
{[%clk 0:01:32.8]} 26... Na5 {[%clk 0:01:42.1]} 27. Qd3 {[%clk 0:01:31.8]} 27...
Qf5 {[%clk 0:01:36.3]} 28. Qa6 {[%clk 0:01:24.3]} 28... e4 {[%clk 0:01:33.8]}
29. Rd1 {[%clk 0:01:15.2]} 29... Rc8 {[%clk 0:00:57.5]} 30. Bd2 {[%clk
0:00:58.7]} 30... Rc2 {[%clk 0:00:55.9]} 31. Be1 {[%clk 0:00:48.3]} 31... Qf3
{[%clk 0:00:45.5]} 32. Rb1 {[%clk 0:00:23.2]} 32... Bxe3 {[%clk 0:00:36.1]} 33.
Qf1 {[%clk 0:00:24.1]} 33... Bb6 {[%clk 0:00:31.8]} 34. Qg2 {[%clk 0:00:21.5]}
34... Qxg2+ {[%clk 0:00:28.3]} 35. Kxg2 {[%clk 0:00:23]} 35... Kf8 {[%clk
0:00:21]} 36. Bxe4 {[%clk 0:00:24]} 36... Rxa2 {[%clk 0:00:22]} 37. Bd5 {[%clk
0:00:25.1]} 37... Re2 {[%clk 0:00:21.5]} 38. Ra1 {[%clk 0:00:25.5]} 38... Re5
{[%clk 0:00:15.3]} 39. Rd1 {[%clk 0:00:23.7]} 39... f5 {[%clk 0:00:15.5]} 40.
Bc3 {[%clk 0:00:24.2]} 40... Re2 {[%clk 0:00:14.8]} 41. Be1 {[%clk 0:00:25]}
41... Rb2 {[%clk 0:00:15.8]} 42. Kf1 {[%clk 0:00:24.1]} 42... Nb3 {[%clk
0:00:17.1]} 43. Bc3 {[%clk 0:00:23.8]} 43... Rc2 {[%clk 0:00:18.4]} 44. Bb4
{[%clk 0:00:22.3]} 44... Rxf2+ {[%clk 0:00:17.2]} 45. Ke1 {[%clk 0:00:22.1]}
45... Rxh2 {[%clk 0:00:15.6]} 46. Bxb3 {[%clk 0:00:21.9]} 46... Bf2+ {[%clk
0:00:13.3]} 47. Kf1 {[%clk 0:00:20.6]} 47... Bxg3 {[%clk 0:00:14.9]} 48. Bxd6+
{[%clk 0:00:21.3]} 48... Bxd6 {[%clk 0:00:15.6]} 49. Rxd6 {[%clk 0:00:23.2]}
49... Rb2 {[%clk 0:00:16]} 50. Bd5 {[%clk 0:00:24.3]} 50... Kg7 {[%clk
0:00:17.1]} 51. Rd7+ {[%clk 0:00:25.6]} 51... Kh6 {[%clk 0:00:18.6]} 52. Rxa7
{[%clk 0:00:27.4]} 52... Rd2 {[%clk 0:00:18.8]} 53. Bg8 {[%clk 0:00:28.5]} 53...
Kg5 {[%clk 0:00:19]} 54. Rxh7 {[%clk 0:00:29.6]} 54... Kf4 {[%clk 0:00:20.4]}
55. Rg7 {[%clk 0:00:30.8]} 55... g5 {[%clk 0:00:21.8]} 56. Bh7 {[%clk
0:00:32.5]} 56... g4 {[%clk 0:00:23.1]} 57. Rf7 {[%clk 0:00:34.1]} 57... Rd5
{[%clk 0:00:24.3]} 58. Kg2 {[%clk 0:00:34.9]} 58... Rd2+ {[%clk 0:00:25.2]} 59.
Kf1 {[%clk 0:00:36]} 59... Rd5 {[%clk 0:00:26.1]} 60. Rf8 {[%clk 0:00:36.9]}
60... Ke4 {[%clk 0:00:25.4]} 61. Ke2 {[%clk 0:00:37.4]} 61... g3 {[%clk
0:00:25.4]} 62. Rg8 {[%clk 0:00:38.3]} 62... Kf4 {[%clk 0:00:26.4]} 63. Rf8
{[%clk 0:00:38.4]} 63... Re5+ {[%clk 0:00:27.8]} 64. Kf1 {[%clk 0:00:39.3]}
64... Kg4 {[%clk 0:00:29.2]} 65. Rg8+ {[%clk 0:00:40.4]} 65... Kf3 {[%clk
0:00:30.5]} 66. Rg5 {[%clk 0:00:40.6]} 66... Kf4 {[%clk 0:00:27.7]} 67. Rxf5+
{[%clk 0:00:41.3]} 67... Rxf5 {[%clk 0:00:28.4]} 68. Bxf5 {[%clk 0:00:43.2]}
68... Kxf5 {[%clk 0:00:30]} 69. Kg2 {[%clk 0:00:44.8]} 69... Kg4 {[%clk
0:00:31.3]} 70. Kg1 {[%clk 0:00:46.4]} 70... Kf4 {[%clk 0:00:30.8]} 71. Kg2
{[%clk 0:00:47.3]} 71... Kg4 {[%clk 0:00:32.5]} 72. Kg1 {[%clk 0:00:49.1]} 72...
Kh3 {[%clk 0:00:34.3]} 73. Kh1 {[%clk 0:00:50.3]} 73... g2+ {[%clk 0:00:36]} 74.
Kg1 {[%clk 0:00:51.8]} 74... Kg3 {[%clk 0:00:37.9]} 1/2-1/2

[Event "*** Titled Tuesday Blitz"]
[Site "Chess.com"]
[Date "2020.02.04"]
[Round "6"]
[White "Poghosyan_Suren"]
[Black "Andro2"]
[Result "1-0"]
[WhiteElo "2671"]
[BlackElo "2443"]
[TimeControl "180+2"]
[EndTime "14:20:59 PST"]
[Termination "Poghosyan_Suren won on time"]

1. Nf3 {[%clk 0:03:01.9]} 1... Nf6 {[%clk 0:02:59]} 2. b3 {[%clk 0:03:02.3]}
2... d6 {[%clk 0:02:41]} 3. d4 {[%clk 0:03:01.8]} 3... g6 {[%clk 0:02:40.2]} 4.
Bb2 {[%clk 0:03:02.3]} 4... Bg7 {[%clk 0:02:41.7]} 5. g3 {[%clk 0:03:03.5]} 5...
O-O {[%clk 0:02:42.5]} 6. Bg2 {[%clk 0:03:05]} 6... Bf5 {[%clk 0:02:34.9]} 7.
O-O {[%clk 0:03:04.7]} 7... Qc8 {[%clk 0:02:25.6]} 8. Re1 {[%clk 0:03:02.4]}
8... Nc6 {[%clk 0:02:14.2]} 9. c4 {[%clk 0:03:00.2]} 9... Bh3 {[%clk 0:02:09.7]}
10. Bh1 {[%clk 0:03:00.4]} 10... Bg4 {[%clk 0:01:56.2]} 11. Nc3 {[%clk
0:02:59.4]} 11... e5 {[%clk 0:01:50.2]} 12. dxe5 {[%clk 0:02:55.5]} 12... Nxe5
{[%clk 0:01:44.3]} 13. Nxe5 {[%clk 0:02:55]} 13... dxe5 {[%clk 0:01:45.3]} 14.
Qd2 {[%clk 0:02:42.8]} 14... Rd8 {[%clk 0:01:36.9]} 15. Qe3 {[%clk 0:02:42.4]}
15... Re8 {[%clk 0:01:36.1]} 16. Rad1 {[%clk 0:02:41.6]} 16... c6 {[%clk
0:01:31.9]} 17. c5 {[%clk 0:02:32.5]} 17... Qc7 {[%clk 0:01:24.8]} 18. Rd6
{[%clk 0:02:29.4]} 18... Be6 {[%clk 0:01:23.7]} 19. Red1 {[%clk 0:02:26.3]}
19... Bf8 {[%clk 0:00:57.8]} 20. Qxe5 {[%clk 0:02:26.3]} 20... Ng4 {[%clk
0:00:54.6]} 21. Qh8+ {[%clk 0:02:21.6]} 21... Kxh8 {[%clk 0:00:50.2]} 22. Nd5+
{[%clk 0:02:22.3]} 22... Kg8 {[%clk 0:00:45.6]} 23. Nxc7 {[%clk 0:02:23.1]}
23... Bxd6 {[%clk 0:00:45.9]} 24. cxd6 {[%clk 0:02:25]} 24... Red8 {[%clk
0:00:41.3]} 25. Nxa8 {[%clk 0:02:25.4]} 25... Rxa8 {[%clk 0:00:42.3]} 26. h3
{[%clk 0:02:24.9]} 26... Nh6 {[%clk 0:00:40.8]} 27. Bf6 {[%clk 0:02:24.5]} 27...
Bd7 {[%clk 0:00:38.4]} 28. g4 {[%clk 0:02:25.8]} 28... Kf8 {[%clk 0:00:38.7]}
29. Rd3 {[%clk 0:01:54.6]} 29... Ng8 {[%clk 0:00:38.3]} 30. Bg5 {[%clk
0:01:55.5]} 30... f6 {[%clk 0:00:38.7]} 31. Be3 {[%clk 0:01:55.7]} 31... Kf7
{[%clk 0:00:34.8]} 32. Rd4 {[%clk 0:01:51.5]} 32... a6 {[%clk 0:00:29.1]} 33. a4
{[%clk 0:01:49.9]} 33... Re8 {[%clk 0:00:28.8]} 34. a5 {[%clk 0:01:50.3]} 34...
Re5 {[%clk 0:00:24.3]} 35. Rb4 {[%clk 0:01:50.9]} 35... Rb5 {[%clk 0:00:25.2]}
36. Rxb5 {[%clk 0:01:50.8]} 36... axb5 {[%clk 0:00:26.4]} 37. b4 {[%clk
0:01:50]} 37... Ke6 {[%clk 0:00:27.1]} 38. Bc5 {[%clk 0:01:47.8]} 38... Nh6
{[%clk 0:00:26.3]} 39. Be4 {[%clk 0:01:21.4]} 39... Nf7 {[%clk 0:00:27.3]} 40.
Bc2 {[%clk 0:01:21.6]} 40... Nxd6 {[%clk 0:00:17.1]} 41. e4 {[%clk 0:01:17.9]}
41... Nc4 {[%clk 0:00:15.4]} 42. f4 {[%clk 0:01:19]} 42... g5 {[%clk 0:00:15.1]}
43. e5 {[%clk 0:01:17.1]} 43... gxf4 {[%clk 0:00:14.2]} 44. Bf5+ {[%clk
0:01:17.6]} 44... Kd5 {[%clk 0:00:10.4]} 45. Bxd7 {[%clk 0:01:19.5]} 45... fxe5
{[%clk 0:00:11.8]} 46. Bc8 {[%clk 0:01:20.3]} 46... e4 {[%clk 0:00:12.4]} 47.
Bxb7 {[%clk 0:01:06]} 47... Nxa5 {[%clk 0:00:12.8]} 48. bxa5 {[%clk 0:01:05.2]}
48... Kxc5 {[%clk 0:00:14]} 49. g5 {[%clk 0:00:56.5]} 49... b4 {[%clk
0:00:13.9]} 50. a6 {[%clk 0:00:44.2]} 50... Kb6 {[%clk 0:00:14.5]} 51. Bc8
{[%clk 0:00:45.7]} 51... b3 {[%clk 0:00:13.3]} 52. Bf5 {[%clk 0:00:46.5]} 52...
e3 {[%clk 0:00:13]} 53. Bxh7 {[%clk 0:00:44.3]} 53... Kxa6 {[%clk 0:00:13.3]}
54. Bd3+ {[%clk 0:00:44.7]} 54... Ka5 {[%clk 0:00:14.1]} 55. g6 {[%clk
0:00:45.9]} 55... f3 {[%clk 0:00:13.2]} 56. g7 {[%clk 0:00:44.9]} 56... b2
{[%clk 0:00:10.9]} 57. g8=Q {[%clk 0:00:45.4]} 57... f2+ {[%clk 0:00:11.6]} 58.
Kf1 {[%clk 0:00:45.7]} 58... Kb4 {[%clk 0:00:13.1]} 59. Qc4+ {[%clk 0:00:45.6]}
59... Ka3 {[%clk 0:00:14.3]} 60. Qc3+ {[%clk 0:00:46.7]} 60... Ka2 {[%clk
0:00:14.4]} 61. Bc4+ {[%clk 0:00:40.6]} 61... Kb1 {[%clk 0:00:12.4]} 62. Qa3
{[%clk 0:00:42.5]} 62... Kc2 {[%clk 0:00:09]} 63. Bd3+ {[%clk 0:00:44.4]} 63...
Kd2 {[%clk 0:00:08.2]} 64. Qb3 {[%clk 0:00:32.9]} 64... e2+ {[%clk 0:00:03.3]}
65. Bxe2 {[%clk 0:00:32]} 1-0

[Event "*** Titled Tuesday Blitz"]
[Site "Chess.com"]
[Date "2020.02.04"]
[Round "6"]
[White "Sajkochess"]
[Black "Hasangatin_Ramil"]
[Result "0-1"]
[WhiteElo "2298"]
[BlackElo "2531"]
[TimeControl "180+2"]
[EndTime "14:20:59 PST"]
[Termination "Hasangatin_Ramil won by resignation"]

1. e4 {[%clk 0:02:56.9]} 1... d5 {[%clk 0:03:00.1]} 2. exd5 {[%clk 0:02:57.3]}
2... Qxd5 {[%clk 0:03:02]} 3. Nc3 {[%clk 0:02:56.3]} 3... Qd6 {[%clk 0:03:02.8]}
4. Bc4 {[%clk 0:02:56.5]} 4... Nf6 {[%clk 0:03:03.9]} 5. Nf3 {[%clk 0:02:56.1]}
5... c6 {[%clk 0:03:05.3]} 6. O-O {[%clk 0:02:55.8]} 6... Bg4 {[%clk 0:03:06.5]}
7. h3 {[%clk 0:02:56.1]} 7... Bh5 {[%clk 0:03:06.6]} 8. Re1 {[%clk 0:02:56.6]}
8... Nbd7 {[%clk 0:03:07.2]} 9. Be2 {[%clk 0:02:54.6]} 9... e6 {[%clk
0:03:07.5]} 10. d3 {[%clk 0:02:55.3]} 10... Be7 {[%clk 0:03:08.4]} 11. Bg5
{[%clk 0:02:54.8]} 11... O-O {[%clk 0:03:08.2]} 12. Qd2 {[%clk 0:02:55]} 12...
Qc7 {[%clk 0:03:09.1]} 13. Bh4 {[%clk 0:02:54.7]} 13... Rfe8 {[%clk 0:03:08.9]}
14. Bg3 {[%clk 0:02:55.4]} 14... Bd6 {[%clk 0:03:09.9]} 15. Bxd6 {[%clk
0:02:55.6]} 15... Qxd6 {[%clk 0:03:11.8]} 16. Ne4 {[%clk 0:02:51.1]} 16... Nxe4
{[%clk 0:03:11.7]} 17. dxe4 {[%clk 0:02:51]} 17... Qc7 {[%clk 0:03:04.5]} 18.
Rad1 {[%clk 0:02:46]} 18... Rad8 {[%clk 0:03:04.2]} 19. Qb4 {[%clk 0:02:42.9]}
19... Qb6 {[%clk 0:02:59.8]} 20. Qxb6 {[%clk 0:02:43.1]} 20... Nxb6 {[%clk
0:02:53.3]} 21. Nd4 {[%clk 0:02:32.1]} 21... Bg6 {[%clk 0:01:41.8]} 22. Bf3
{[%clk 0:01:26.5]} 22... Na4 {[%clk 0:01:41.8]} 23. Ne2 {[%clk 0:01:19.9]} 23...
e5 {[%clk 0:01:16.1]} 24. b3 {[%clk 0:01:17.3]} 24... Nc5 {[%clk 0:01:16.8]} 25.
Nc3 {[%clk 0:01:17.3]} 25... Ne6 {[%clk 0:01:14.4]} 26. Ne2 {[%clk 0:01:06.9]}
26... Nc5 {[%clk 0:01:13.1]} 27. Ng3 {[%clk 0:00:58.8]} 27... Ne6 {[%clk
0:01:02.6]} 28. c3 {[%clk 0:00:46.2]} 28... Nc5 {[%clk 0:00:52.3]} 29. h4 {[%clk
0:00:42.7]} 29... f6 {[%clk 0:00:49.2]} 30. h5 {[%clk 0:00:33.5]} 30... Bf7
{[%clk 0:00:50]} 31. Rxd8 {[%clk 0:00:31.5]} 31... Rxd8 {[%clk 0:00:50.2]} 32.
Rd1 {[%clk 0:00:33.4]} 32... Rxd1+ {[%clk 0:00:47.6]} 33. Bxd1 {[%clk
0:00:34.2]} 33... a5 {[%clk 0:00:45.1]} 34. Kf1 {[%clk 0:00:34.7]} 34... a4
{[%clk 0:00:23.7]} 35. bxa4 {[%clk 0:00:35.1]} 35... Bxa2 {[%clk 0:00:21.8]} 36.
Ke2 {[%clk 0:00:34.9]} 36... Bc4+ {[%clk 0:00:22.3]} 37. Ke3 {[%clk 0:00:31.2]}
37... g6 {[%clk 0:00:23]} 38. hxg6 {[%clk 0:00:31.6]} 38... hxg6 {[%clk
0:00:24.9]} 39. Ne2 {[%clk 0:00:31]} 39... Bxe2 {[%clk 0:00:24.5]} 40. Bxe2
{[%clk 0:00:26]} 40... Nxa4 {[%clk 0:00:24.8]} 41. Kd3 {[%clk 0:00:26.3]} 41...
b5 {[%clk 0:00:23.8]} 42. Bg4 {[%clk 0:00:18.4]} 42... Nc5+ {[%clk 0:00:23.4]}
43. Ke3 {[%clk 0:00:19]} 43... Kf7 {[%clk 0:00:24.4]} 44. Bd1 {[%clk 0:00:19.2]}
44... Ke7 {[%clk 0:00:24.6]} 45. g3 {[%clk 0:00:20.5]} 45... Kd6 {[%clk
0:00:25.3]} 46. f4 {[%clk 0:00:21.5]} 46... Na4 {[%clk 0:00:23.9]} 47. Kd2
{[%clk 0:00:20.5]} 47... Kc5 {[%clk 0:00:24.3]} 48. Bb3 {[%clk 0:00:20.9]} 48...
g5 {[%clk 0:00:23.5]} 49. fxg5 {[%clk 0:00:21.3]} 49... fxg5 {[%clk 0:00:25.4]}
50. Kd3 {[%clk 0:00:21.4]} 50... Nb6 {[%clk 0:00:25.8]} 51. Be6 {[%clk
0:00:21.4]} 51... Na4 {[%clk 0:00:24]} 52. Bb3 {[%clk 0:00:21.5]} 52... Nb6
{[%clk 0:00:24.1]} 53. Be6 {[%clk 0:00:21.9]} 53... b4 {[%clk 0:00:25.1]} 54.
cxb4+ {[%clk 0:00:21.6]} 54... Kxb4 {[%clk 0:00:27]} 55. Bf7 {[%clk 0:00:22.9]}
55... c5 {[%clk 0:00:27.9]} 56. Ke3 {[%clk 0:00:21.6]} 56... c4 {[%clk
0:00:28.4]} 57. Bxc4 {[%clk 0:00:13.3]} 57... Kxc4 {[%clk 0:00:28.2]} 58. Kf3
{[%clk 0:00:15.2]} 58... Kd4 {[%clk 0:00:29]} 59. Kg4 {[%clk 0:00:16.7]} 59...
Kxe4 {[%clk 0:00:29.9]} 60. Kxg5 {[%clk 0:00:18.6]} 60... Nd5 {[%clk 0:00:28.6]}
61. g4 {[%clk 0:00:17.6]} 61... Ne3 {[%clk 0:00:27.6]} 62. Kh4 {[%clk
0:00:17.3]} 62... Nxg4 {[%clk 0:00:29.5]} 63. Kxg4 {[%clk 0:00:18.4]} 63... Kd3
{[%clk 0:00:29.6]} 64. Kf3 {[%clk 0:00:19.6]} 64... e4+ {[%clk 0:00:31]} 65. Kf2
{[%clk 0:00:21]} 65... Kd2 {[%clk 0:00:31.8]} 0-1

[Event "*** Titled Tuesday Blitz"]
[Site "Chess.com"]
[Date "2020.02.04"]
[Round "6"]
[White "GianmarcoVaR"]
[Black "INLOVEWITHF"]
[Result "0-1"]
[WhiteElo "2613"]
[BlackElo "2366"]
[TimeControl "180+2"]
[EndTime "14:21:01 PST"]
[Termination "INLOVEWITHF won by checkmate"]

1. d4 {[%clk 0:02:58.7]} 1... d5 {[%clk 0:02:58.7]} 2. c4 {[%clk 0:02:59.6]}
2... c6 {[%clk 0:02:56.8]} 3. Nf3 {[%clk 0:02:58.1]} 3... Nf6 {[%clk 0:02:57]}
4. Nc3 {[%clk 0:02:56.3]} 4... e6 {[%clk 0:02:57.4]} 5. g3 {[%clk 0:02:54.4]}
5... dxc4 {[%clk 0:02:49.4]} 6. Bg2 {[%clk 0:02:53.9]} 6... b5 {[%clk
0:02:48.6]} 7. O-O {[%clk 0:02:51.2]} 7... Bb7 {[%clk 0:02:49.4]} 8. Ne5 {[%clk
0:02:48]} 8... Qb6 {[%clk 0:02:41.7]} 9. a4 {[%clk 0:02:35.4]} 9... a6 {[%clk
0:02:40.3]} 10. Bg5 {[%clk 0:01:51.7]} 10... h6 {[%clk 0:02:28.7]} 11. Bxf6
{[%clk 0:01:50.1]} 11... gxf6 {[%clk 0:02:30.6]} 12. Ng4 {[%clk 0:01:49.7]}
12... Nd7 {[%clk 0:02:31.1]} 13. e4 {[%clk 0:01:44.8]} 13... b4 {[%clk
0:02:11.4]} 14. Ne2 {[%clk 0:01:41]} 14... a5 {[%clk 0:01:58.6]} 15. Ne3 {[%clk
0:01:39.9]} 15... Ba6 {[%clk 0:01:47.9]} 16. Rc1 {[%clk 0:01:32.6]} 16... c5
{[%clk 0:01:30.5]} 17. Nxc4 {[%clk 0:01:14.4]} 17... Bxc4 {[%clk 0:00:54.8]} 18.
Rxc4 {[%clk 0:01:13.5]} 18... cxd4 {[%clk 0:00:56.7]} 19. Rxd4 {[%clk
0:00:55.2]} 19... Ne5 {[%clk 0:00:55.9]} 20. Rd2 {[%clk 0:00:38.4]} 20... Bc5
{[%clk 0:00:52.3]} 21. b3 {[%clk 0:00:35.1]} 21... Ke7 {[%clk 0:00:44.8]} 22.
Nf4 {[%clk 0:00:19.3]} 22... Rhd8 {[%clk 0:00:40.9]} 23. h3 {[%clk 0:00:14.4]}
23... Rxd2 {[%clk 0:00:36.1]} 24. Qxd2 {[%clk 0:00:15.7]} 24... Rd8 {[%clk
0:00:38]} 25. Qe2 {[%clk 0:00:17.1]} 25... Bd4 {[%clk 0:00:17.5]} 26. Kh2 {[%clk
0:00:18.3]} 26... Bc3 {[%clk 0:00:17.6]} 27. Qh5 {[%clk 0:00:06]} 27... Rd2
{[%clk 0:00:14.7]} 28. Qxh6 {[%clk 0:00:04.9]} 28... Rxf2 {[%clk 0:00:15.7]} 29.
Rxf2 {[%clk 0:00:02.6]} 29... Qxf2 {[%clk 0:00:17.6]} 30. Qh5 {[%clk 0:00:03.9]}
30... Bd4 {[%clk 0:00:09.4]} 31. h4 {[%clk 0:00:04.3]} 31... Be3 {[%clk
0:00:08.2]} 32. Qe2 {[%clk 0:00:04.1]} 32... Qxe2 {[%clk 0:00:07.4]} 33. Nxe2
{[%clk 0:00:05.3]} 33... Nd3 {[%clk 0:00:08.6]} 34. Bf3 {[%clk 0:00:05.4]} 34...
Nc5 {[%clk 0:00:09]} 35. e5 {[%clk 0:00:02.5]} 35... fxe5 {[%clk 0:00:09.1]} 36.
g4 {[%clk 0:00:03.7]} 36... Nxb3 {[%clk 0:00:09.7]} 37. Ng3 {[%clk 0:00:03.6]}
37... Nd2 {[%clk 0:00:10.2]} 38. Bd1 {[%clk 0:00:04]} 38... b3 {[%clk 0:00:11]}
39. Ne2 {[%clk 0:00:04.8]} 39... Bd4 {[%clk 0:00:10.6]} 40. Nc3 {[%clk
0:00:06.4]} 40... Bxc3 {[%clk 0:00:11.5]} 41. h5 {[%clk 0:00:07.4]} 41... Kf6
{[%clk 0:00:12.4]} 42. h6 {[%clk 0:00:08.1]} 42... Kg6 {[%clk 0:00:13]} 43. g5
{[%clk 0:00:09.6]} 43... e4 {[%clk 0:00:13.3]} 44. Kg3 {[%clk 0:00:08.9]} 44...
Kxg5 {[%clk 0:00:14.5]} 45. Kf2 {[%clk 0:00:08.4]} 45... Kxh6 {[%clk 0:00:15]}
46. Ke3 {[%clk 0:00:09.9]} 46... b2 {[%clk 0:00:14.4]} 47. Bc2 {[%clk 0:00:11]}
47... b1=Q {[%clk 0:00:14.7]} 48. Bxb1 {[%clk 0:00:08.3]} 48... Nxb1 {[%clk
0:00:16.6]} 49. Kxe4 {[%clk 0:00:10.2]} 49... Bb4 {[%clk 0:00:17.9]} 50. Kd4
{[%clk 0:00:10.8]} 50... Nc3 {[%clk 0:00:19.4]} 51. Ke5 {[%clk 0:00:10.9]} 51...
Nxa4 {[%clk 0:00:21.3]} 52. Kf6 {[%clk 0:00:12.4]} 52... Nc3 {[%clk 0:00:22.3]}
53. Ke5 {[%clk 0:00:14]} 53... a4 {[%clk 0:00:23.9]} 54. Kd4 {[%clk 0:00:15.9]}
54... a3 {[%clk 0:00:25.5]} 55. Kd3 {[%clk 0:00:17.3]} 55... a2 {[%clk
0:00:26.9]} 56. Kc2 {[%clk 0:00:19.2]} 56... a1=Q {[%clk 0:00:27.7]} 57. Kb3
{[%clk 0:00:21.1]} 57... Qa2+ {[%clk 0:00:26.3]} 58. Kxb4 {[%clk 0:00:22.2]}
58... Nd5+ {[%clk 0:00:26.9]} 59. Kc5 {[%clk 0:00:23.7]} 59... Qa5+ {[%clk
0:00:26.4]} 60. Kd4 {[%clk 0:00:25]} 60... Qb6+ {[%clk 0:00:27.9]} 61. Ke5
{[%clk 0:00:26.4]} 61... Qc7+ {[%clk 0:00:28.3]} 62. Ke4 {[%clk 0:00:27.8]}
62... f5+ {[%clk 0:00:28.6]} 63. Kf3 {[%clk 0:00:28.7]} 63... Qc3+ {[%clk
0:00:29.2]} 64. Ke2 {[%clk 0:00:30.4]} 64... Nf4+ {[%clk 0:00:30.2]} 65. Kf1
{[%clk 0:00:30.7]} 65... Qd2 {[%clk 0:00:30.7]} 66. Kg1 {[%clk 0:00:32.2]} 66...
Qg2# {[%clk 0:00:32.3]} 0-1

[Event "*** Titled Tuesday Blitz"]
[Site "Chess.com"]
[Date "2020.02.04"]
[Round "6"]
[White "allvim"]
[Black "EugeneRougon"]
[Result "0-1"]
[WhiteElo "2415"]
[BlackElo "2714"]
[TimeControl "180+2"]
[EndTime "14:21:01 PST"]
[Termination "EugeneRougon won by resignation"]

1. d4 {[%clk 0:03:01.9]} 1... d5 {[%clk 0:02:58.6]} 2. c4 {[%clk 0:03:02.5]}
2... c6 {[%clk 0:02:59.5]} 3. Nc3 {[%clk 0:03:03.8]} 3... Nf6 {[%clk 0:03:00.8]}
4. Nf3 {[%clk 0:03:04.5]} 4... e6 {[%clk 0:03:01.8]} 5. Bf4 {[%clk 0:03:05.6]}
5... dxc4 {[%clk 0:02:55.6]} 6. a4 {[%clk 0:03:06.8]} 6... Bb4 {[%clk
0:02:52.4]} 7. Qc2 {[%clk 0:03:08]} 7... O-O {[%clk 0:02:38]} 8. e3 {[%clk
0:03:09.1]} 8... b5 {[%clk 0:02:37.4]} 9. Be2 {[%clk 0:03:08.3]} 9... Bb7 {[%clk
0:02:32.6]} 10. O-O {[%clk 0:03:09.2]} 10... a6 {[%clk 0:02:31.8]} 11. Nd2
{[%clk 0:03:07.4]} 11... Nbd7 {[%clk 0:02:30.3]} 12. h3 {[%clk 0:03:08]} 12...
Qe7 {[%clk 0:02:30.2]} 13. Bf3 {[%clk 0:03:05]} 13... e5 {[%clk 0:02:25.9]} 14.
dxe5 {[%clk 0:03:05.5]} 14... Nxe5 {[%clk 0:02:27.1]} 15. Be2 {[%clk 0:03:02.1]}
15... Rad8 {[%clk 0:02:22.2]} 16. Rfd1 {[%clk 0:03:02.2]} 16... Nd3 {[%clk
0:02:20.7]} 17. Nf3 {[%clk 0:03:01.1]} 17... Bxc3 {[%clk 0:02:12.6]} 18. bxc3
{[%clk 0:02:57.9]} 18... Nxf4 {[%clk 0:02:12.5]} 19. exf4 {[%clk 0:02:59.4]}
19... Qe4 {[%clk 0:02:07]} 20. Qb2 {[%clk 0:02:43.9]} 20... Qxf4 {[%clk
0:02:05.4]} 21. Rd4 {[%clk 0:02:08]} 21... Rxd4 {[%clk 0:02:04.2]} 22. Nxd4
{[%clk 0:02:09]} 22... Ne4 {[%clk 0:01:59.6]} 23. Bf3 {[%clk 0:01:47.7]} 23...
Qd2 {[%clk 0:01:33.7]} 24. Qxd2 {[%clk 0:01:40.8]} 24... Nxd2 {[%clk 0:01:35.6]}
25. Bxc6 {[%clk 0:01:39.7]} 25... Bxc6 {[%clk 0:01:16.7]} 26. Nxc6 {[%clk
0:01:41.6]} 26... Ne4 {[%clk 0:01:04.8]} 27. axb5 {[%clk 0:01:41.8]} 27... axb5
{[%clk 0:01:05.3]} 28. Ra3 {[%clk 0:01:43.2]} 28... Re8 {[%clk 0:00:36.5]} 29.
f3 {[%clk 0:01:44.2]} 29... Nd6 {[%clk 0:00:33.4]} 30. Nd4 {[%clk 0:01:31]}
30... h5 {[%clk 0:00:29.3]} 31. Ra5 {[%clk 0:01:29.7]} 31... Rb8 {[%clk
0:00:20.9]} 32. Ra6 {[%clk 0:01:27.7]} 32... Ne8 {[%clk 0:00:21.8]} 33. Nc6
{[%clk 0:01:23.1]} 33... Rb7 {[%clk 0:00:23.1]} 34. Ra8 {[%clk 0:01:23.9]} 34...
Kf8 {[%clk 0:00:24.3]} 35. Nb4 {[%clk 0:01:05.1]} 35... Ke7 {[%clk 0:00:20.2]}
36. Kf2 {[%clk 0:01:06.4]} 36... Nc7 {[%clk 0:00:17.7]} 37. Rc8 {[%clk
0:00:58.5]} 37... g6 {[%clk 0:00:13.8]} 38. Ke3 {[%clk 0:00:59.5]} 38... Ne6
{[%clk 0:00:11.7]} 39. Ke4 {[%clk 0:00:49.6]} 39... h4 {[%clk 0:00:11.7]} 40.
Nd5+ {[%clk 0:00:34.6]} 40... Kd6 {[%clk 0:00:12.6]} 41. Nb4 {[%clk 0:00:27.4]}
41... Nc5+ {[%clk 0:00:13.4]} 42. Kd4 {[%clk 0:00:26.2]} 42... Nb3+ {[%clk
0:00:14.2]} 43. Ke3 {[%clk 0:00:21.6]} 43... Re7+ {[%clk 0:00:14.6]} 44. Kf4
{[%clk 0:00:20.7]} 44... Nc1 {[%clk 0:00:15.1]} 45. Rc6+ {[%clk 0:00:18.5]}
45... Kd7 {[%clk 0:00:16.2]} 46. Rb6 {[%clk 0:00:19.2]} 46... Ne2+ {[%clk
0:00:16.5]} 47. Kg5 {[%clk 0:00:20.4]} 47... Nxc3 {[%clk 0:00:17.1]} 48. Kxh4
{[%clk 0:00:19.2]} 48... Re2 {[%clk 0:00:15.1]} 49. g4 {[%clk 0:00:16.2]} 49...
Rb2 {[%clk 0:00:15.3]} 50. Na6 {[%clk 0:00:13.6]} 50... Nd5 {[%clk 0:00:12.6]}
51. Rb7+ {[%clk 0:00:08.6]} 51... Kc6 {[%clk 0:00:12.3]} 52. Rxf7 {[%clk
0:00:08.2]} 52... c3 {[%clk 0:00:13]} 53. Rf8 {[%clk 0:00:08.3]} 53... Kb6
{[%clk 0:00:13]} 54. Nb8 {[%clk 0:00:07.2]} 54... c2 {[%clk 0:00:12.6]} 55. Nd7+
{[%clk 0:00:08.4]} 55... Kc7 {[%clk 0:00:12.5]} 56. Ne5 {[%clk 0:00:04]} 56...
c1=Q {[%clk 0:00:13.1]} 57. Nd3 {[%clk 0:00:04.1]} 57... Qd2 {[%clk 0:00:12.2]}
58. Nxb2 {[%clk 0:00:05.1]} 58... Qh6+ {[%clk 0:00:12.7]} 59. Kg3 {[%clk
0:00:06.1]} 59... Qxf8 {[%clk 0:00:14.6]} 60. Nd3 {[%clk 0:00:07.6]} 60... Qd6+
{[%clk 0:00:15.5]} 61. f4 {[%clk 0:00:08.7]} 61... g5 {[%clk 0:00:17.4]} 62. Kf3
{[%clk 0:00:06.6]} 62... Nxf4 {[%clk 0:00:18.6]} 0-1